bitfinex/quotes_BTCUSD_20241201
["timestamp","ask_amount","ask_price","bid_price","bid_amount"]
[1733077432151,0.000864,97525.0,97524.0,0.13921923]
[1733077432899,0.002864,97525.0,97524.0,0.13921923]
[1733077433103,0.000864,97525.0,97524.0,0.13921923]
[1733077433317,0.002864,97525.0,97524.0,0.13921923]
[1733077433978,0.000864,97525.0,97524.0,0.14121923]
[1733077434751,0.000864,97525.0,97524.0,0.1430339]
[1733077434962,0.000864,97525.0,97524.0,0.14421923]
[1733077435686,0.000864,97525.0,97524.0,0.1460339]
[1733077436897,0.000864,97525.0,97524.0,0.14421923]
[1733077437614,0.000864,97525.0,97524.0,0.15421923]
[1733077437813,0.000864,97525.0,97524.0,0.15603387]
[1733077439818,0.000864,97525.0,97524.0,0.15421923]
[1733077441088,0.000864,97525.0,97524.0,0.35929623]
[1733077444106,0.000864,97525.0,97524.0,0.46214144]
[1733077444578,1.00086401,97525.0,97524.0,0.46214144]
[1733077453255,0.95470461,97525.0,97524.0,0.46214144]
[1733077457976,0.95470461,97525.0,97524.0,0.46214144]
[1733077459330,0.95470461,97525.0,97524.0,0.4620539]
[1733077459802,0.95470461,97525.0,97524.0,0.4827732]
[1733077462767,0.95470461,97525.0,97524.0,0.4620539]
[1733077465235,0.95470461,97525.0,97524.0,0.4637815]
[1733077465678,0.95556841,97525.0,97524.0,0.4637815]
[1733077468476,0.9094074,97525.0,97524.0,0.4637815]
[1733077478872,0.9094074,97525.0,97524.0,0.4617815]
[1733077479313,0.9094074,97525.0,97524.0,0.4607815]
[1733077479737,0.9094074,97525.0,97524.0,0.4587815]
[1733077479943,0.9094074,97525.0,97524.0,0.4627815]
[1733077480623,0.9104074,97525.0,97524.0,0.4687815]
[1733077488287,0.9104074,97525.0,97524.0,0.2637045]
[1733077488508,0.9104074,97525.0,97524.0,0.06434683]
[1733077488708,0.9104074,97525.0,97524.0,0.07434683]
[1733077488920,0.9104074,97525.0,97524.0,0.0797276]
[1733077489134,0.9104074,97525.0,97524.0,0.0317276]
[1733077489336,0.9104074,97525.0,97524.0,0.0217276]
[1733077490279,0.9104074,97525.0,97524.0,0.0117276]
[1733077491175,0.9104074,97525.0,97524.0,0.0217276]
[1733077492464,0.9104074,97525.0,97524.0,0.0117276]
[1733077492700,0.94243946,97525.0,97524.0,0.0217276]
[1733077494173,0.96543946,97525.0,97524.0,0.0217276]
[1733077494379,0.96543946,97525.0,97524.0,0.0117276]
[1733077498266,0.96543946,97525.0,97524.0,0.0217276]
[1733077498488,0.96543946,97525.0,97524.0,0.0117276]
[1733077499153,0.96543946,97525.0,97524.0,0.0217276]
[1733077499542,0.96543946,97525.0,97524.0,0.0117276]
[1733077500394,0.9334074,97525.0,97524.0,0.0117276]
[1733077500616,0.9334074,97525.0,97524.0,0.0217276]
[1733077500825,0.96540509,97525.0,97524.0,0.0217276]
[1733077501949,0.9104074,97525.0,97524.0,0.0217276]
[1733077504806,0.9104074,97525.0,97524.0,0.02636137]
[1733077505227,0.9104074,97525.0,97524.0,0.07216137]
[1733077505692,0.9104074,97525.0,97524.0,0.14846137]
[1733077505943,0.9104074,97525.0,97524.0,0.15846137]
[1733077507579,0.9104074,97525.0,97524.0,0.26130658]
[1733077516949,0.9104074,97525.0,97524.0,0.26256232]
[1733077522663,0.9104074,97525.0,97524.0,0.26211657]
[1733077527538,0.9104074,97525.0,97524.0,0.08297136]
[1733077529095,0.9104074,97525.0,97524.0,0.08652974]
[1733077535553,0.9104074,97525.0,97524.0,0.08252974]
[1733077535777,0.9104074,97525.0,97524.0,0.08652974]
[1733077536203,0.9104074,97525.0,97524.0,0.08252974]
[1733077536616,0.9104074,97525.0,97524.0,0.08652974]
[1733077545422,0.9104074,97525.0,97524.0,0.03072974]
[1733077545663,0.9104074,97525.0,97524.0,0.04072974]
[1733077548276,0.9104074,97525.0,97519.0,0.0492]
[1733077548501,0.9104074,97525.0,97524.0,0.0084948]
[1733077548705,0.9104074,97525.0,97519.0,0.0492]
[1733077548919,0.9104074,97525.0,97519.0,0.254287]
[1733077549132,0.9104074,97525.0,97520.0,0.00849855]
[1733077550001,0.9094074,97525.0,97520.0,0.00849855]
[1733077550877,0.9094074,97525.0,97520.0,0.01649855]
[1733077551305,0.9094074,97525.0,97520.0,0.01349855]
[1733077551535,0.9094074,97525.0,97520.0,0.01449855]
[1733077552867,0.9094074,97525.0,97520.0,0.00949855]
[1733077553098,0.9094074,97525.0,97520.0,0.01249855]
[1733077553324,0.9094074,97525.0,97520.0,0.00949855]
[1733077553778,0.9094074,97525.0,97520.0,0.01249855]
[1733077558466,0.9094074,97525.0,97520.0,0.01422615]
[1733077558886,0.205077,97524.0,97520.0,0.01422615]
[1733077559319,0.9094074,97525.0,97520.0,0.01422615]
[1733077559481,0.9094074,97525.0,97520.0,0.0057276]
[1733077559694,0.9094074,97525.0,97520.0,0.0047276]
[1733077559905,0.205077,97524.0,97520.0,0.0037276]
[1733077560347,0.205077,97524.0,97521.0,0.00849883]
[1733077560562,0.205077,97524.0,97520.0,0.0047276]
[1733077560778,0.9094074,97525.0,97522.0,0.00850143]
[1733077560988,0.9094074,97525.0,97521.0,0.00850236]
[1733077561209,0.9094074,97525.0,97520.0,0.0047276]
[1733077561412,0.205077,97524.0,97520.0,0.0017276]
[1733077561611,0.205077,97524.0,97521.0,0.00850236]
[1733077562043,0.205077,97524.0,97520.0,0.0037276]
[1733077562256,0.410155,97524.0,97521.0,0.00850236]
[1733077562489,0.410155,97524.0,97520.0,0.0037276]
[1733077562490,0.03204392,97523.0,97520.0,0.0037276]
[1733077562709,0.205081,97522.0,97520.0,0.0037276]
[1733077562948,0.03204392,97521.0,97520.0,0.0017276]
[1733077563159,0.03204392,97521.0,97520.0,0.0067276]
[1733077563409,0.03204392,97521.0,97520.0,0.0037276]
[1733077563626,0.03204392,97521.0,97520.0,0.0017276]
[1733077563838,0.03204392,97521.0,97520.0,0.0047276]
[1733077564063,0.03204392,97521.0,97520.0,0.0017276]
[1733077564264,0.03204392,97521.0,97520.0,0.0027276]
[1733077564679,0.13487538,97521.0,97520.0,0.0017276]
[1733077565519,0.13487538,97521.0,97520.0,0.0027276]
[1733077566172,0.13487538,97521.0,97520.0,0.0017276]
[1733077566631,0.13587538,97521.0,97520.0,0.0017276]
[1733077566855,0.13487538,97521.0,97520.0,0.0017276]
[1733077567096,0.13787538,97521.0,97520.0,0.0017276]
[1733077567329,0.03204392,97521.0,97520.0,0.0017276]
[1733077567771,0.03704392,97521.0,97520.0,0.0017276]
[1733077568204,0.03804392,97521.0,97520.0,0.0017276]
[1733077568637,0.03704392,97521.0,97520.0,0.0017276]
[1733077569393,0.03904392,97521.0,97520.0,0.0017276]
[1733077569980,0.03904392,97521.0,97520.0,0.0507276]
[1733077570585,0.007,97521.0,97520.0,0.0507276]
[1733077571455,0.007,97521.0,97520.0,0.05924844]
[1733077571654,0.0078639,97521.0,97520.0,0.05924844]
[1733077571853,0.0078639,97521.0,97520.0,0.0507276]
[1733077572281,0.0058639,97521.0,97520.0,0.0507276]
[1733077572505,0.0018639,97521.0,97520.0,0.0507276]
[1733077572932,0.0048639,97521.0,97520.0,0.0507276]
[1733077573150,0.0008639,97521.0,97520.0,0.0507276]
[1733077573590,0.0038639,97521.0,97520.0,0.0507276]
[1733077574272,0.0048639,97521.0,97520.0,0.0507276]
[1733077576502,0.0048639,97521.0,97520.0,0.05936094]
[1733077578020,0.0048639,97521.0,97520.0,0.13716094]
[1733077583655,0.9094074,97525.0,97521.0,0.1451361]
[1733077584069,0.9094074,97525.0,97522.0,0.00861283]
[1733077584274,0.205077,97524.0,97522.0,0.00861283]
[1733077584515,0.0008638,97525.0,97522.0,0.00861283]
[1733077584965,0.0078638,97525.0,97522.0,0.00861283]
[1733077585190,0.205077,97524.0,97522.0,0.00861283]
[1733077585666,0.005,97524.0,97522.0,0.00861283]
[1733077585923,0.0028638,97525.0,97522.0,0.00861283]
[1733077586179,0.0078638,97525.0,97522.0,0.00861283]
[1733077586609,0.205079,97523.0,97522.0,0.00861283]
[1733077587059,0.0028638,97525.0,97522.0,0.00861283]
[1733077587511,0.03200524,97524.0,97522.0,0.00861283]
[1733077587730,0.002,97523.0,97522.0,0.00861283]
[1733077588174,0.205077,97524.0,97522.0,0.00861283]
[1733077588517,0.004,97524.0,97522.0,0.00861283]
[1733077588616,0.205079,97523.0,97522.0,0.00861283]
[1733077588861,0.004,97523.0,97522.0,0.00861283]
[1733077589355,0.205077,97524.0,97522.0,0.00861283]
[1733077589515,0.209077,97524.0,97522.0,0.00861283]
[1733077589742,0.205077,97524.0,97522.0,0.00861283]
[1733077590126,0.004,97523.0,97522.0,0.00861283]
[1733077590994,0.006,97523.0,97522.0,0.00861283]
[1733077591411,0.002,97523.0,97522.0,0.00861283]
[1733077591615,0.03401411,97523.0,97522.0,0.00861283]
[1733077592356,0.03801411,97523.0,97522.0,0.00861283]
[1733077595184,0.03801411,97523.0,97522.0,0.05791283]
[1733077596300,0.03887801,97523.0,97522.0,0.05791283]
[1733077596510,0.03887801,97523.0,97522.0,0.05715407]
[1733077603624,0.05988371,97523.0,97522.0,0.05715407]
[1733077605578,0.03887801,97523.0,97522.0,0.05715407]
[1733077611568,0.80314931,97525.0,97522.0,0.05715407]
[1733077612761,0.80414931,97525.0,97522.0,0.05715407]
[1733077613206,0.80314931,97525.0,97522.0,0.05715407]
[1733077614327,0.80414931,97525.0,97522.0,0.05715407]
[1733077614535,0.80514931,97525.0,97522.0,0.05715407]
[1733077620390,1.01022531,97525.0,97522.0,0.05715407]
[1733077620806,1.01022531,97525.0,97522.0,0.0493]
[1733077621497,0.80514931,97525.0,97522.0,0.0493]
[1733077621646,0.03204339,97524.0,97522.0,0.0510278]
[1733077622488,0.03204339,97524.0,97523.0,0.00854045]
[1733077622693,0.03204339,97524.0,97522.0,0.0510278]
[1733077622918,0.03204339,97524.0,97523.0,0.00853951]
[1733077623134,0.03204339,97524.0,97522.0,0.0510278]
[1733077623341,0.03204339,97524.0,97523.0,0.00853951]
[1733077623777,0.03304339,97524.0,97522.0,0.0510278]
[1733077624013,0.03204339,97523.0,97522.0,0.0510278]
[1733077624428,0.03304298,97524.0,97522.0,0.0510278]
[1733077624638,0.80401321,97525.0,97522.0,0.05956825]
[1733077624861,0.03204281,97524.0,97522.0,0.05956825]
[1733077625605,0.03304281,97524.0,97522.0,0.05956825]
[1733077625811,0.03204281,97523.0,97522.0,0.05956825]
[1733077626245,0.001,97524.0,97522.0,0.05956825]
[1733077627198,0.03204319,97523.0,97522.0,0.05956825]
[1733077627405,0.03204319,97524.0,97522.0,0.05956825]
[1733077628275,0.03304319,97524.0,97522.0,0.05956825]
[1733077628481,0.03204319,97523.0,97522.0,0.05956825]
[1733077630482,0.03204319,97524.0,97522.0,0.05956825]
[1733077630688,0.03204319,97523.0,97522.0,0.05956825]
[1733077631105,0.03204319,97524.0,97522.0,0.05956825]
[1733077631738,0.03304319,97524.0,97522.0,0.05956825]
[1733077631986,0.001,97524.0,97522.0,0.05956825]
[1733077633196,0.03204492,97523.0,97522.0,0.05956825]
[1733077634138,0.80401321,97525.0,97522.0,0.05956825]
[1733077634139,0.03204492,97524.0,97522.0,0.05956825]
[1733077634361,0.80401321,97525.0,97522.0,0.05956825]
[1733077634558,0.03204521,97524.0,97522.0,0.05956825]
[1733077635338,0.03304521,97524.0,97522.0,0.05956825]
[1733077635543,0.001,97524.0,97522.0,0.05956825]
[1733077635750,0.03204775,97523.0,97522.0,0.05956825]
[1733077636987,0.03204775,97524.0,97522.0,0.05956825]
[1733077638552,0.03304775,97524.0,97522.0,0.05956825]
[1733077638772,0.03204775,97523.0,97522.0,0.05956825]
[1733077640043,0.03204775,97524.0,97522.0,0.05956825]
[1733077640276,0.03204775,97523.0,97522.0,0.05956825]
[1733077640423,0.03204775,97524.0,97522.0,0.05956825]
[1733077640638,0.03204775,97523.0,97522.0,0.05956825]
[1733077641254,0.03204775,97524.0,97522.0,0.05956825]
[1733077641463,0.03204775,97523.0,97522.0,0.26464925]
[1733077641633,0.001,97524.0,97522.0,0.21534925]
[1733077641840,0.001,97524.0,97523.0,0.1205]
[1733077642253,0.001,97524.0,97523.0,0.13077703]
[1733077643560,0.80401321,97525.0,97523.0,0.23362224]
[1733077643777,0.80401321,97525.0,97524.0,0.43212221]
[1733077644496,0.80401321,97525.0,97524.0,0.442399]
[1733077645035,0.80401321,97525.0,97524.0,0.447399]
[1733077646290,0.80401321,97525.0,97524.0,0.450399]
[1733077646514,0.80401321,97525.0,97524.0,0.44937114]
[1733077659833,0.80401321,97525.0,97524.0,0.45109874]
[1733077665326,0.80401321,97525.0,97524.0,0.47168387]
[1733077665746,0.80401321,97525.0,97524.0,0.45109874]
[1733077679795,0.80401321,97525.0,97524.0,0.75871874]
[1733077692854,0.80401321,97525.0,97524.0,0.37402439]
[1733077693067,0.80401321,97525.0,97524.0,0.32762439]
[1733077694369,1.04113655,97525.0,97524.0,0.32762439]
[1733077694571,1.00908821,97525.0,97524.0,0.32762439]
[1733077695202,1.00908821,97525.0,97524.0,0.32462439]
[1733077696514,1.00908821,97525.0,97524.0,0.32762439]
[1733077696671,1.00908821,97525.0,97524.0,0.32262439]
[1733077696901,1.00908821,97525.0,97524.0,0.31962439]
[1733077697102,1.00908821,97525.0,97524.0,0.32162439]
[1733077697319,1.00908821,97525.0,97524.0,0.32062439]
[1733077697784,1.00908821,97525.0,97524.0,0.32262439]
[1733077697983,0.80401321,97525.0,97524.0,0.32262439]
[1733077698187,1.00908821,97525.0,97524.0,0.32262439]
[1733077699429,1.01994607,97525.0,97524.0,0.32262439]
[1733077699628,1.01994607,97525.0,97524.0,0.32062439]
[1733077700211,1.01994607,97525.0,97524.0,0.31962439]
[1733077700849,1.01994607,97525.0,97524.0,0.32062439]
[1733077701469,1.01994607,97525.0,97524.0,0.31962439]
[1733077704070,1.02094607,97525.0,97524.0,0.31962439]
[1733077711990,1.10710895,97525.0,97524.0,0.31962439]
[1733077712663,0.90103395,97525.0,97524.0,0.31962439]
[1733077713077,0.86907107,97525.0,97524.0,0.31962439]
[1733077713279,0.81587107,97525.0,97524.0,0.31962439]
[1733077722496,0.84784974,97525.0,97524.0,0.31962439]
[1733077732253,0.84784974,97525.0,97524.0,0.36492439]
[1733077735655,0.84784974,97525.0,97524.0,0.31962439]
[1733077744148,0.84765008,97525.0,97524.0,0.31962439]
[1733077745675,0.87065008,97525.0,97524.0,0.31962439]
[1733077753043,0.87065008,97525.0,97524.0,0.36552439]
[1733077755416,0.87065008,97525.0,97524.0,0.36506075]
[1733077757131,0.84765008,97525.0,97524.0,0.36506075]
[1733077757347,0.84765008,97525.0,97524.0,0.44226075]
[1733077759972,0.81567141,97525.0,97524.0,0.44226075]
[1733077760390,0.80381355,97525.0,97524.0,0.44226075]
[1733077760831,0.80381355,97525.0,97524.0,0.44426075]
[1733077761471,0.80381355,97525.0,97524.0,0.44526075]
[1733077775344,0.75381355,97525.0,97524.0,0.44526075]
[1733077780472,0.75381355,97525.0,97524.0,0.4446832]
[1733077794982,0.75381355,97525.0,97524.0,0.54752841]
[1733077807008,0.75381355,97525.0,97524.0,0.4446832]
[1733077828711,0.75381355,97525.0,97524.0,0.3674832]
[1733077829780,0.75381355,97525.0,97524.0,0.3664832]
[1733077829997,0.75381355,97525.0,97524.0,0.3674832]
[1733077830648,0.75298703,97525.0,97524.0,0.3674832]
[1733077831443,0.75298703,97525.0,97524.0,0.3684832]
[1733077856145,0.78502615,97525.0,97524.0,0.3225832]
[1733077856778,0.78502615,97525.0,97524.0,0.3215832]
[1733077858108,0.78502615,97525.0,97524.0,0.3225832]
[1733077858246,0.78502615,97525.0,97524.0,0.3195832]
[1733077858626,0.78502615,97525.0,97524.0,0.3185832]
[1733077859047,0.79202615,97525.0,97524.0,0.3185832]
[1733077859744,0.79002615,97525.0,97524.0,0.3185832]
[1733077859964,0.79202615,97525.0,97524.0,0.3185832]
[1733077861336,0.81502615,97525.0,97524.0,0.3185832]
[1733077862677,0.91787136,97525.0,97524.0,0.3185832]
[1733077864033,1.02170282,97525.0,97524.0,0.3185832]
[1733077864466,1.07490282,97525.0,97524.0,0.3185832]
[1733077864678,1.08490282,97525.0,97524.0,0.3185832]
[1733077865926,0.98207136,97525.0,97524.0,0.3185832]
[1733077866333,0.98207136,97525.0,97524.0,0.0109632]
[1733077866732,0.98207136,97525.0,97524.0,0.0017276]
[1733077867158,0.98207136,97525.0,97524.0,0.0016876]
[1733077867330,0.0872,97523.0,97522.0,0.0017278]
[1733077867540,0.32491579,97523.0,97522.0,0.0017278]
[1733077868916,0.34291579,97523.0,97522.0,0.0017278]
[1733077869327,0.33991579,97523.0,97522.0,0.0027278]
[1733077869531,0.34891579,97523.0,97522.0,0.0027278]
[1733077869735,0.34991579,97523.0,97522.0,0.0027278]
[1733077870955,0.35291579,97523.0,97522.0,0.0027278]
[1733077871354,0.34191579,97523.0,97522.0,0.0027278]
[1733077871693,0.35091579,97523.0,97522.0,0.0037278]
[1733077874999,0.24808433,97523.0,97522.0,0.0037278]
[1733077875221,0.24708433,97523.0,97522.0,0.0037278]
[1733077875433,0.16088433,97523.0,97522.0,0.0037278]
[1733077876559,0.17088433,97523.0,97522.0,0.0037278]
[1733077876733,0.18388433,97523.0,97522.0,0.0037278]
[1733077877003,0.19388433,97523.0,97522.0,0.0037278]
[1733077877641,0.18388433,97523.0,97522.0,0.0037278]
[1733077878356,0.19388433,97523.0,97522.0,0.0037278]
[1733077878778,0.18388433,97523.0,97522.0,0.0037278]
[1733077878983,0.19388433,97523.0,97522.0,0.0037278]
[1733077880050,0.18388433,97523.0,97522.0,0.0037278]
[1733077880509,0.17388433,97523.0,97522.0,0.0037278]
[1733077880965,0.26905137,97523.0,97522.0,0.0037278]
[1733077881421,0.17388433,97523.0,97522.0,0.0037278]
[1733077881644,0.15088433,97523.0,97522.0,0.0848278]
[1733077882919,0.17388433,97523.0,97522.0,0.0848278]
[1733077883141,0.16688433,97523.0,97522.0,0.0838278]
[1733077883403,0.16688433,97523.0,97522.0,0.1325278]
[1733077883609,0.13384521,97523.0,97522.0,0.1325278]
[1733077883817,0.031,97523.0,97522.0,0.1325278]
[1733077884253,0.035,97523.0,97522.0,0.1325278]
[1733077889166,0.012,97523.0,97522.0,0.14176725]
[1733077890556,0.035,97523.0,97522.0,0.14176725]
[1733077891013,0.012,97523.0,97522.0,0.14176725]
[1733077892090,0.004,97523.0,97522.0,0.14076725]
[1733077892511,0.0008637,97524.0,97523.0,0.334779]
[1733077892932,0.0008637,97524.0,97523.0,0.34398499]
[1733077893837,0.0018637,97524.0,97523.0,0.13890599]
[1733077894702,0.0048637,97524.0,97523.0,0.13890599]
[1733077896417,0.0038637,97524.0,97523.0,0.13890599]
[1733077897256,0.0008637,97524.0,97523.0,0.13890599]
[1733077897525,0.0018637,97524.0,97523.0,0.13890599]
[1733077898936,0.0248637,97524.0,97523.0,0.13890599]
[1733077899328,0.0248637,97524.0,97523.0,0.1297]
[1733077900563,0.0248637,97524.0,97523.0,0.13890599]
[1733077901488,0.0248637,97524.0,97523.0,0.1297]
[1733077905214,0.0248637,97524.0,97523.0,0.13890599]
[1733077907524,0.0248637,97524.0,97523.0,0.1297]
[1733077907960,0.12769516,97524.0,97523.0,0.1297]
[1733077908179,0.12769516,97524.0,97522.0,0.0017278]
[1733077908180,0.023,97523.0,97522.0,0.0017278]
[1733077908390,0.33092421,97523.0,97522.0,0.0017278]
[1733077909066,0.36286393,97523.0,97522.0,0.0017278]
[1733077909469,0.36486393,97523.0,97522.0,0.0017278]
[1733077909908,0.36886393,97523.0,97522.0,0.0017278]
[1733077910560,0.36686393,97523.0,97522.0,0.0017278]
[1733077910982,0.36886393,97523.0,97522.0,0.0017278]
[1733077915127,0.26601872,97523.0,97522.0,0.0494278]
[1733077915346,0.26601872,97523.0,97522.0,0.1299278]
[1733077915770,0.26601872,97523.0,97522.0,0.0017278]
[1733077916888,0.36886393,97523.0,97522.0,0.0017278]
[1733077919153,0.37886393,97523.0,97522.0,0.0017278]
[1733077919691,0.38886393,97523.0,97522.0,0.0017278]
[1733077920123,0.38686393,97523.0,97522.0,0.0017278]
[1733077920553,0.38786393,97523.0,97522.0,0.0017278]
[1733077920731,0.49069539,97523.0,97522.0,0.0017278]
[1733077920988,0.48569539,97523.0,97522.0,0.0017278]
[1733077921191,0.48569539,97523.0,97522.0,0.0037278]
[1733077921192,0.50069539,97523.0,97522.0,0.0037278]
[1733077922672,0.49169539,97523.0,97522.0,0.0027278]
[1733077922879,0.50069539,97523.0,97522.0,0.0027278]
[1733077931067,0.50480139,97523.0,97522.0,0.0027278]
[1733077934469,0.50580139,97523.0,97522.0,0.0027278]
[1733077936400,0.49980139,97523.0,97522.0,0.0017278]
[1733077936668,0.49780139,97523.0,97522.0,0.0027278]
[1733077936884,0.49780139,97523.0,97522.0,0.0037278]
[1733077937098,0.49980139,97523.0,97522.0,0.0027278]
[1733077937311,0.49980139,97523.0,97522.0,8e-07]
[1733077937625,0.043,97521.0,97520.0,4e-07]
[1733077937841,0.248086,97520.0,97519.0,2e-07]
[1733077938060,0.38287093,97520.0,97519.0,2e-07]
[1733077938814,0.01,97514.0,97510.0,0.0017276]
[1733077939036,0.01,97514.0,97413.0,0.01605387]
[1733077939037,0.043,97505.0,97504.0,6.79532339]
[1733077939246,0.38290193,97505.0,97504.0,6.79532339]
[1733077939677,0.53290193,97505.0,97504.0,6.79532339]
[1733077939974,0.53290193,97505.0,97504.0,6.28213623]
[1733077940184,0.53190193,97505.0,97504.0,6.28213623]
[1733077940351,0.49990193,97505.0,97504.0,6.28213623]
[1733077940573,0.50690193,97505.0,97504.0,6.28213623]
[1733077940852,0.51590193,97505.0,97504.0,6.28213623]
[1733077941262,0.53688717,97505.0,97504.0,6.28213623]
[1733077941914,0.55988717,97505.0,97504.0,6.28213623]
[1733077942122,0.66789729,97505.0,97504.0,6.28213623]
[1733077942562,0.56988717,97505.0,97504.0,6.28213623]
[1733077947034,0.55988717,97505.0,97504.0,6.28213623]
[1733077947284,0.56988717,97505.0,97504.0,6.28213623]
[1733077948192,0.55988717,97505.0,97504.0,6.28213623]
[1733077948415,0.56988717,97505.0,97504.0,6.28213623]
[1733077949172,0.56988717,97505.0,97504.0,6.29000218]
[1733077949378,0.56288717,97505.0,97504.0,6.29000218]
[1733077949524,0.54388717,97505.0,97504.0,6.29000218]
[1733077949768,0.56188717,97505.0,97504.0,6.29100218]
[1733077949977,0.57088717,97505.0,97504.0,6.29100218]
[1733077950714,0.57988717,97505.0,97504.0,6.29100218]
[1733077951105,0.57188717,97505.0,97504.0,6.29000218]
[1733077951334,0.57988717,97505.0,97504.0,6.29100218]
[1733077953264,0.56988717,97505.0,97504.0,6.42130218]
[1733077953484,0.55988717,97505.0,97504.0,6.42130218]
[1733077954837,0.53090193,97505.0,97504.0,6.42030218]
[1733077955651,0.53790193,97505.0,97504.0,6.42130218]
[1733077955873,0.51990193,97505.0,97504.0,6.42130218]
[1733077956088,0.61772003,97505.0,97504.0,6.42130218]
[1733077956298,0.62672003,97505.0,97504.0,6.42230218]
[1733077956512,0.61972003,97505.0,97504.0,6.42130218]
[1733077957166,0.62672003,97505.0,97504.0,6.42230218]
[1733077957841,0.52890193,97505.0,97504.0,6.42202189]
[1733077959834,1.28102506,97505.0,97504.0,6.42202189]
[1733077962299,1.00517985,97505.0,97504.0,6.42202189]
[1733077965240,1.00604375,97505.0,97504.0,6.42202189]
[1733077971860,0.99904375,97505.0,97504.0,6.42102189]
[1733077972319,1.00204375,97505.0,97504.0,6.42102189]
[1733077973157,1.00204375,97505.0,97504.0,6.42002189]
[1733077973303,1.01604375,97505.0,97504.0,6.42002189]
[1733077973530,1.02304375,97505.0,97504.0,6.42102189]
[1733077982289,1.12588896,97505.0,97504.0,6.42102189]
[1733077984840,1.02304375,97505.0,97504.0,6.42102189]
[1733077987860,1.02304375,97505.0,97504.0,6.42112189]
[1733077988927,1.12588896,97505.0,97504.0,6.42112189]
[1733077990221,1.12588896,97505.0,97504.0,6.33922189]
[1733077990468,1.22872042,97505.0,97504.0,6.33922189]
[1733077991149,1.12588896,97505.0,97504.0,6.33922189]
[1733077991580,1.02304375,97505.0,97504.0,6.41852189]
[1733077991787,1.00004375,97505.0,97504.0,6.41852189]
[1733077993505,1.02304375,97505.0,97504.0,6.41852189]
[1733077995285,1.12588896,97505.0,97504.0,6.41852189]
[1733078000893,1.02304375,97505.0,97504.0,6.41852189]
[1733078031453,1.02304375,97505.0,97504.0,6.33922189]
[1733078034985,1.02276577,97505.0,97504.0,6.33922189]
[1733078039497,1.02276577,97505.0,97504.0,6.41602189]
[1733078042465,0.27064264,97505.0,97504.0,6.41602189]
[1733078053939,0.27064264,97505.0,97504.0,6.41403766]
[1733078059499,0.27064264,97505.0,97504.0,6.33723766]
[1733078059705,0.27064264,97505.0,97504.0,6.28883766]
[1733078062435,0.27064264,97505.0,97504.0,6.33433766]
[1733078063111,0.27064264,97505.0,97504.0,6.41213766]
[1733078065820,0.37348785,97505.0,97504.0,6.28883766]
[1733078072161,0.3941756,97505.0,97504.0,6.28883766]
[1733078073244,0.3941756,97505.0,97504.0,6.29183766]
[1733078083539,1.14629873,97505.0,97504.0,6.29183766]
[1733078091208,1.15629873,97505.0,97504.0,6.29183766]
[1733078092105,1.15329873,97505.0,97504.0,6.29183766]
[1733078092346,1.15729873,97505.0,97504.0,6.29183766]
[1733078092994,1.15029873,97505.0,97504.0,6.29083766]
[1733078093458,1.15429873,97505.0,97504.0,6.29083766]
[1733078093700,1.15929873,97505.0,97504.0,6.29083766]
[1733078093918,1.28113019,97505.0,97504.0,6.29083766]
[1733078094149,1.28113019,97505.0,97504.0,6.26209873]
[1733078095055,1.27613019,97505.0,97504.0,6.26209873]
[1733078095466,1.28113019,97505.0,97504.0,6.26309873]
[1733078099110,1.17829873,97505.0,97504.0,6.26309873]
[1733078104852,1.15761098,97505.0,97504.0,6.26309873]
[1733078105510,1.30761098,97505.0,97504.0,6.26309873]
[1733078109581,1.30761098,97505.0,97504.0,6.18105073]
[1733078109783,1.36011098,97505.0,97504.0,6.14002673]
[1733078110053,1.46294244,97505.0,97504.0,6.09900273]
[1733078110483,1.45794244,97505.0,97504.0,6.07749073]
[1733078110693,1.44094244,97505.0,97504.0,6.05697873]
[1733078110898,1.44694244,97505.0,97504.0,5.99244273]
[1733078111101,1.46781763,97505.0,97504.0,5.97193073]
[1733078111360,1.47481763,97505.0,97504.0,5.97193073]
[1733078111777,1.46781763,97505.0,97504.0,5.95141873]
[1733078112000,1.46781763,97505.0,97504.0,5.93090673]
[1733078112204,1.47481763,97505.0,97504.0,5.88988273]
[1733078112647,1.45537904,97505.0,97504.0,5.84885873]
[1733078112863,1.45537904,97505.0,97504.0,5.80195301]
[1733078113076,1.56317904,97505.0,97504.0,5.72765593]
[1733078113294,1.55417904,97505.0,97504.0,5.72765593]
[1733078113506,1.55617904,97505.0,97504.0,5.72765593]
[1733078113976,1.55517904,97505.0,97504.0,5.66611993]
[1733078114188,1.56417904,97505.0,97504.0,5.62509593]
[1733078114395,1.57664979,97505.0,97504.0,5.62509593]
[1733078114631,1.58564979,97505.0,97504.0,5.62509593]
[1733078114843,1.45737904,97505.0,97504.0,5.54304793]
[1733078115049,1.45737904,97505.0,97504.0,5.52253593]
[1733078115939,1.44837904,97505.0,97504.0,5.48151193]
[1733078116141,1.44837904,97505.0,97504.0,5.46099993]
[1733078116346,1.45737904,97505.0,97504.0,5.41997593]
[1733078116793,1.51367904,97505.0,97504.0,5.28193993]
[1733078117025,1.66177204,97505.0,97504.0,5.12205773]
[1733078117692,1.67783564,97505.0,97504.0,5.08103373]
[1733078117992,1.66883564,97505.0,97504.0,5.04000973]
[1733078118205,1.67783564,97505.0,97504.0,5.01949773]
[1733078118408,1.66883564,97505.0,97504.0,5.01949773]
[1733078118614,1.67783564,97505.0,97504.0,4.99898573]
[1733078119042,1.66883564,97505.0,97504.0,4.95796173]
[1733078119276,1.67783564,97505.0,97504.0,4.93744973]
[1733078119495,1.66883564,97505.0,97504.0,4.78857184]
[1733078119926,1.67783564,97505.0,97504.0,4.74754784]
[1733078120133,1.69862351,97505.0,97504.0,4.70652384]
[1733078122090,1.69862351,97505.0,97504.0,4.68601184]
[1733078122319,1.69862351,97505.0,97504.0,4.66549984]
[1733078124718,1.69862351,97505.0,97504.0,4.62447584]
[1733078124719,1.67783564,97505.0,97504.0,4.62447584]
[1733078125594,1.67783564,97505.0,97504.0,4.52996962]
[1733078125809,1.67783564,97505.0,97504.0,4.50945762]
[1733078126261,1.67783564,97505.0,97504.0,4.42740962]
[1733078126490,1.67783564,97505.0,97504.0,4.40689762]
[1733078126709,1.67783564,97505.0,97504.0,4.38638562]
[1733078127838,1.67783564,97505.0,97504.0,4.34536162]
[1733078128042,1.67783564,97505.0,97504.0,4.32484962]
[1733078128254,1.67783564,97505.0,97504.0,4.30433762]
[1733078128799,2.76648964,97505.0,97504.0,4.22228962]
[1733078129006,2.74594164,97505.0,97504.0,4.20177762]
[1733078129695,2.74594164,97505.0,97504.0,4.18126562]
[1733078129908,2.76648828,97505.0,97504.0,4.16075362]
[1733078130040,2.76648828,97505.0,97504.0,4.14024162]
[1733078130254,2.75043128,97505.0,97504.0,4.09921762]
[1733078130690,2.75043128,97505.0,97504.0,4.07870562]
[1733078130902,2.74899468,97505.0,97504.0,4.03768162]
[1733078131106,2.74899468,97505.0,97504.0,4.01716962]
[1733078131343,2.74899468,97505.0,97504.0,3.99665762]
[1733078131835,2.74899468,97505.0,97504.0,3.89409762]